[Event "Israeli Championship 2022"]
[Site "Yosiah Arad"]
[Date "2022.12.06"]
[Round "2.14"]
[White "Shachar, Ehud"]
[Black "Barak, Gil"]
[Result "1-0"]
[ECO "C00"]
[WhiteElo "2319"]
[BlackElo "2147"]
[Annotator "TA"]
[PlyCount "69"]
[EventDate "2022.12.05"]
[EventType "swiss"]
[EventCountry "ISR"]
[SourceTitle "playchess.com"]
[Source "ChessBase"]
[SourceQuality "1"]
[TimeControl "40/5400+30:1800+30"]

{[%evp 15,69,-21,0,-13,-17,-20,-10,-21,11,0,0,0,17,30,58,54,53,54,52,0,20,31,26,26,24,20,25,27,25,12,76,0,176,142,523,544,759,385,525,523,508,541,487,510,585,443,1196,1079,29986,12795,29981,29982,29982,29983,29983,12835]} 1. Nf3 {[%emt 0:00:30]} d5 {[%emt 0:01:45]} 2. g3 {[%emt 0:00:13]} Nf6 {[%emt 0:00:30]} 3. Bg2 {[%emt 0:00:10]} c5 {[%emt 0:01:21]} 4. O-O {[%emt 0:00:11]} Nc6 {[%emt 0:00:46]} 5. d3 {[%emt 0:00:52]} e6 {[%emt 0:03:16]} 6. Nbd2 {[%emt 0:00:38]} Be7 {[%emt 0:00:53]} 7. e4 {[%emt 0:00:09]} O-O {[%emt 0:01:38]} 8. Re1 {[%emt 0:00:08]} Re8 {[%emt 0:04:24]} 9. e5 {[%emt 0:09:19] C00: French: Unusual White 2nd moves.} Nd7 {[%emt 0:00:09]} 10. c4 {[%emt 0:00:37]} Qc7 {[%emt 0:07:27][%cal Rc6e5]} 11. Qe2 {[%emt 0:01:04] The position is equal.} Nb6 {[%emt 0:08:36]} 12. h4 {[%emt 0:06:05]} Bd7 {[%emt 0:03:03]} 13. Nf1 {[%emt 0:07:15]} dxc4 {[%emt 0:09:39]} 14. dxc4 {[%emt 0:00:11]} Nd4 {[%emt 0:00:51]} 15. Nxd4 {[%emt 0:03:03]} cxd4 {[%emt 0:00:02]} 16. b3 {[%emt 0:00:30]} Bc6 {[%emt 0:05:44]} 17. h5 {[%emt 0:06:14]} (17. Bb2 $14) 17... Rad8 {[%emt 0:07:10] [#]} (17... Bxg2 {simplifies} 18. Kxg2 Qc6+ 19. f3 f6) 18. Qg4 $146 {[%emt 0:02:23]} ({Predecessor:} 18. Bf4 Nd7 19. Nh2 Bxg2 20. Kxg2 Qc6+ 21. Kg1 d3 22. Qg4 Kh8 23. Rad1 Nc5 24. h6 {1-0 (40) Jeet,J (1828)-Laimins,L (2123) Riga 2019}) 18... Bxg2 {[%emt 0:07:25]} 19. Bh6 {[%emt 0:02:54][%csl Gh6][%cal Rg4g7]} g6 {[%emt 0:04:10]} 20. Kxg2 {[%emt 0:00:38]} Nd7 $1 {[%emt 0:04:06]} 21. hxg6 $40 {[%emt 0:04:11][%mdl 128] White mounts an attack.} hxg6 {[%emt 0:00:02]} 22. Qf4 {[%emt 0:10:39]} Bb4 {[%emt 0:28:33] [#]} (22... f5 $11 {keeps the balance.}) 23. Bg5 {[%emt 0:05:53]} Qc6+ {[%emt 0:00:00]} (23... Bxe1 $11 24. Rxe1 f6 25. Bxf6 Nxf6 26. Qxf6 Qf7) 24. f3 $18 {[%emt 0:01:48][%cal Of4h4] Hoping for Qh4!} Rc8 $2 {[%emt 0:00:00][%mdl 8192] [#] Loses the game.} (24... Bxe1 $16 25. Rxe1 f6 26. Bxf6 (26. exf6 Kf7 $11) 26... Nxf6 27. exf6 Kf7) 25. Nh2 $1 {[%emt 0:03:18]} Bxe1 {[%emt 0:00:56]} (25... f5 26. exf6) 26. Rxe1 {[%emt 0:00:18]} f5 {[%emt 0:00:30] Prevents Ng4.} 27. exf6 {[%emt 0:00:27] f7+ would kill now.} ({Not} 27. Qxd4 Rc7 $15) 27... Kf7 {[%emt 0:00:26]} 28. Ng4 {[%emt 0:00:25] Prevents e5.} ({Weaker is} 28. Qxd4 e5 29. Qe3 (29. Qxa7 e4 $17) 29... Qb6 $14) 28... Rh8 {[%emt 0:00:31]} 29. Qxd4 {[%emt 0:01:54] And now Rd1 would win.} Rh5 {[%emt 0:00:35]} 30. Rd1 {[%emt 0:12:32]} Rd8 {[%emt 0:00:26]} (30... Rxg5 $142 31. Qxd7+ Qxd7 32. Rxd7+ Kf8 33. Rxb7 Rd8) 31. Qf4 {[%emt 0:01:35][%cal Od1d7] Intending Rxd7+! and mate.} Kf8 {[%emt 0:00:32]} 32. f7 {[%emt 0:00:53]} (32. Ne5 $142 Qc8 33. Bh6+ Kg8 34. Rxd7 Rxd7 35. f7+ Kh7 36. Nxd7 Rf5 37. Nf8+ Qxf8 38. Bxf8) 32... Rc8 {[%emt 0:00:32]} 33. Bh6+ {[%emt 0:00:28] White mates.} Rxh6 {[%emt 0:00:18]} 34. Qxh6+ {[%emt 0:00:28]} Ke7 {[%emt 0:00:13]} 35. Qg5+ {[%emt 0:01:40] Weighted Error Value: White=0.34/Black=0.81} (35. Qg7 $142 Rf8 36. Nh6 Qc5 37. Ng8+ Kd8 38. Nf6 Kc7 39. Nxd7 Qf5 40. Nxf8) 1-0

[Event "Israeli Championship 2022"]
[Site "Yosiah Arad"]
[Date "2022.12.06"]
[Round "2.15"]
[White "Uritsky, Yonathan"]
[Black "Streltsov, Alexey"]
[Result "0-1"]
[ECO "C56"]
[WhiteElo "2216"]
[BlackElo "2313"]
[Annotator "TA"]
[PlyCount "78"]
[EventDate "2022.12.05"]
[EventType "swiss"]
[EventCountry "ISR"]
[SourceTitle "playchess.com"]
[Source "ChessBase"]
[SourceQuality "1"]
[TimeControl "40/5400+30:1800+30"]

{[%evp 18,78,0,-9,25,4,9,0,50,26,64,72,60,41,73,73,82,69,66,32,39,35,106,57,57,41,55,69,50,41,41,0,0,-76,-80,-173,-181,-182,-173,-169,-180,-189,-192,-187,-171,-197,-177,-251,-246,-304,-301,-300,-266,-344,-298,-340,-340,-304,-278,-970,-954,-1330,-1271]} 1. e4 {[%emt 0:00:13]} e5 {[%emt 0:00:10]} 2. Nf3 {[%emt 0:00:16]} Nc6 {[%emt 0:00:06]} 3. Bc4 {[%emt 0:00:18]} Nf6 {[%emt 0:00:17][%cal Bg8f6,Bf6e4,Be4g5][%mdl 32]} 4. d4 {[%emt 0:00:11]} exd4 {[%emt 0:00:21]} 5. e5 {[%emt 0:00:12]} d5 {[%emt 0:00:22]} 6. Bb5 {[%emt 0:00:09]} Ne4 {[%emt 0:00:23]} 7. Nxd4 {[%emt 0:00:23]} Bd7 {[%emt 0:01:43]} 8. Bxc6 {[%emt 0:00:03]} bxc6 {[%emt 0:00:38]} 9. O-O {[%emt 0:00:08]} Be7 {[%emt 0:06:06][%cal Bf8e7,Be7g5,Bg5e3][%mdl 32]} 10. f3 {[%emt 0:05:26]} Ng5 {[%emt 0:05:23] C56: Two Knights: 4 d4 exd4 5 0-0 Nxe4.} 11. Be3 {[%emt 0:03:16]} c5 {[%emt 0:03:45]} 12. Nb3 {[%emt 0:07:42][%csl LRc5,LRd5]} Bb5 {[%emt 0:00:38]} ({Black should try} 12... c4 $11 13. Nc5 Bc8) 13. Re1 {[%emt 0:02:10]} (13. Rf2 $5 {[%cal Rb1c3]}) 13... d4 {[%emt 0:04:44] [#] Against Nc3} 14. Bxg5 $146 {[%emt 0:09:59]} ({Predecessor:} 14. Bf2 Ne6 15. Na3 Ba6 16. Nd2 h5 17. Nac4 h4 18. b3 h3 19. g3 Qd5 20. Qe2 {0-1 (36) Ueter,H (2172)-De Vreugt,D (2369) Nordrheinwestfalen 2011}) 14... Bxg5 {[%emt 0:00:07]} 15. Na3 {[%emt 0:01:01]} (15. a4 {seems wilder.} Be3+ 16. Kh1 Bc4 17. Nxc5 Qh4 18. Ne4) 15... Rb8 {[%emt 0:10:19]} 16. Nxb5 {[%emt 0:05:13]} Rxb5 {[%emt 0:00:12]} 17. Qd3 {[%emt 0:06:57]} Rb6 {[%emt 0:00:16]} 18. Nxc5 {[%emt 0:08:52]} Be3+ {[%emt 0:00:18]} 19. Kh1 {[%emt 0:00:40]} Rh6 {[%emt 0:03:08]} (19... O-O $1 $14) 20. g3 {[%emt 0:10:25]} (20. h3 $16) 20... O-O $14 {[%emt 0:04:28]} 21. Ne4 {[%emt 0:01:58] Prevents Qg5. aiming for c3.} Qc8 {[%emt 0:02:03]} 22. c3 {[%emt 0:04:25]} c5 {[%emt 0:08:09]} 23. cxd4 {[%emt 0:03:37]} (23. Qe2 {simplifies} Qe6 24. Nxc5 Qxe5 25. Ne4) 23... cxd4 {[%emt 0:00:49]} 24. Rad1 {[%emt 0:02:22]} (24. Re2 $5 {[%cal Re4d6]}) 24... Qe6 $40 {[%emt 0:11:22][%csl LRa2,LRe5][%mdl 128] Black is up to no good.} 25. Nd6 {[%emt 0:09:04] [#]} (25. f4 $1 $11) 25... Qh3 $1 $17 {[%emt 0:10:27][%csl Gh6][%cal Rh3h2]} ({But not} 25... Qxa2 26. Nc4 Qa6 27. Nxe3 dxe3 28. Qxa6 (28. Qxe3 Rb6 $16) (28. Rxe3 Qb7 $16) 28... Rxa6 29. Rxe3 $16) (25... Qxe5 26. Nf5 $11) 26. Qe2 {[%emt 0:00:18]} (26. Re2 $17 Qxg3 27. Nf5 Qxf3+ 28. Rg2) 26... Qxg3 $19 {[%emt 0:00:11] ( -> ...Bf2)} 27. Qg2 {[%emt 0:07:05]} Qxe5 {[%emt 0:01:16] The board is on fire.} 28. Nc4 {[%emt 0:00:01]} Qf4 {[%emt 0:07:30][%cal Oh6h2]} 29. Nxe3 {[%emt 0:01:03]} dxe3 {[%emt 0:00:05]} 30. Rd3 {[%emt 0:00:02]} Re6 {[%emt 0:00:26][%cal Oe3e2]} ({Not} 30... Rg6 31. Qe2 $17) 31. Qg3 {[%emt 0:03:44]} Qb4 {[%emt 0:00:54] [#] Threatens to win with ...Rg6.} 32. Re2 {[%emt 0:02:29]} (32. Rexe3 $142 Qxb2 33. Rxe6 fxe6 34. Rd7) 32... Rfe8 {[%emt 0:00:41]} 33. Qg4 {[%emt 0:01:30]} Qb5 {[%emt 0:03:14]} 34. Qd4 {[%emt 0:00:58]} h6 {[%emt 0:00:57]} 35. Qd5 {[%emt 0:01:23]} Qb6 {[%emt 0:00:36]} 36. Qd4 {[%emt 0:00:40]} Qc6 {[%emt 0:01:00]} 37. Qd5 {[%emt 0:00:28]} Qa6 {[%emt 0:02:50] And now ...Re5 would win.} 38. b4 $2 {[%emt 0:01:47]} (38. Qd4) 38... Re5 {[%emt 0:00:35]} 39. Qd4 {[%emt 0:00:52]} Qc6 {[%emt 0:00:24] Weighted Error Value: White=0.55/Black=0.11 (very precise)} 0-1

[Event "Israeli Championship 2022"]
[Site "Yosiah Arad"]
[Date "2022.12.06"]
[Round "2.16"]
[White "Shohat, Yotam"]
[Black "Shimshovich, Asaf"]
[Result "1/2-1/2"]
[ECO "B80"]
[WhiteElo "2294"]
[BlackElo "1941"]
[Annotator "TA"]
[PlyCount "50"]
[EventDate "2022.12.05"]
[EventType "swiss"]
[EventCountry "ISR"]
[SourceTitle "playchess.com"]
[Source "ChessBase"]
[SourceQuality "1"]
[TimeControl "40/5400+30:1800+30"]

{[%evp 17,50,14,42,39,28,40,68,54,65,59,49,56,50,61,58,19,84,62,84,41,101,94,73,0,116,113,218,222,209,-199,-199,-210,-192,-303,1268]} 1. e4 {[%emt 0:00:03]} c5 {[%emt 0:00:04]} 2. Nf3 {[%emt 0:00:12]} e6 {[%emt 0:00:04]} 3. d4 {[%emt 0:00:04]} cxd4 {[%emt 0:00:04]} 4. Nxd4 {[%emt 0:00:03]} Nf6 {[%emt 0:00:07]} 5. Nc3 {[%emt 0:00:03]} d6 {[%emt 0:00:10]} 6. Be3 {[%emt 0:00:08]} a6 {[%emt 0:00:18]} 7. f3 {[%emt 0:04:29]} b5 {[%emt 0:01:05]} 8. Qd2 {[%emt 0:00:39]} Bb7 {[%emt 0:01:45]} 9. g4 {[%emt 0:06:52]} Nfd7 {[%emt 0:00:39] 9...Nfd7 is better than 9...h6.} 10. a3 {[%emt 0:15:08] B80: Sicilian Scheveningen: 6 g3 and 6 Be3, including English Attack.} Nb6 {[%emt 0:03:10]} 11. Nb3 $1 {[%emt 0:11:36]} Nc4 {[%emt 0:15:56] Against Na5} 12. Bxc4 {[%emt 0:00:50] White is slightly better.} bxc4 {[%emt 0:00:04]} 13. Nd4 {[%emt 0:00:08] White is more active.} Nd7 {[%emt 0:04:04]} 14. O-O-O {[%emt 0:04:14] [#]} Qa5 $146 {[%emt 0:05:57]} ({Predecessor:} 14... Rc8 15. h4 Qa5 16. Kb1 Nb6 17. Rhe1 Na4 18. Nxa4 Qxa4 19. Qc3 Be7 20. g5 O-O {1-0 (44) Chetrari,N (2265)-Garbowski,J (2049) Porec 2015}) 15. Rhe1 {[%emt 0:10:44]} Be7 {[%emt 0:13:17]} 16. f4 {[%emt 0:10:52][%cal Bf3f4,Bf4f5][%mdl 32]} O-O {[%emt 0:05:51]} (16... Rb8 $11) 17. f5 $16 {[%emt 0:06:55]} Nc5 {[%emt 0:06:38]} 18. g5 {[%emt 0:04:05] Prevents Bf6.} Rfb8 {[%emt 0:03:39]} 19. fxe6 {[%emt 0:07:33]} fxe6 {[%emt 0:01:10]} 20. h4 $1 {[%emt 0:05:21]} Qc7 {[%emt 0:20:10]} (20... Bxe4 $2 21. Nxe4 Qb6 22. Qb4 $1 Qxb4 23. axb4 Nxe4 24. Bf4 $18) (20... Qb6 $11 21. Nxe6 Bc6) 21. Qe2 {[%emt 0:06:11]} d5 {[%emt 0:02:51]} (21... Qd7 $16 {was necessary.}) 22. exd5 $18 {[%emt 0:03:56]} Bxd5 {[%emt 0:01:41] [#] Threatens to win with ...Qb7.} (22... exd5 23. Qg4 Re8 24. Nf5) 23. Kb1 $4 {[%emt 0:00:13][%mdl 8192]} (23. Nxe6 $1 $18 {[%mdl 512] avoids the disaster.} Bxe6 24. Bxc5 Bxc5 25. Qxe6+ Kh8 26. Re5 (26. Qxc4 $2 {is the wrong capture.} Be3+ 27. Rxe3 Qxc4 $19)) 23... Qa5 $19 {[%emt 0:10:59][%csl LRa3,LRc3]} 24. Nxd5 {[%emt 0:00:48]} exd5 {[%emt 0:00:08]} 25. Bc1 {[%emt 0:01:05]} (25. Bd2 $142 c3 26. Nb3 Nxb3 27. cxb3 (27. Bxc3 $2 {loses.} Qxc3 28. Qe6+ Kh8 $19) 27... cxd2 28. Rxd2) 25... Nb7 $4 {[%emt 0:03:09][%mdl 40960] Weighted Error Value: White=0.46/Black=0.30. An unexpected result.} 1/2-1/2

[Event "Israeli Championship 2022"]
[Site "Yosiah Arad"]
[Date "2022.12.07"]
[Round "3.1"]
[White "Gorodetzky, David"]
[Black "Gorshtein, Ido"]
[Result "0-1"]
[ECO "B12"]
[WhiteElo "2495"]
[BlackElo "2469"]
[Annotator "TA"]
[PlyCount "144"]
[EventDate "2022.12.05"]
[EventType "swiss"]
[EventCountry "ISR"]
[SourceTitle "playchess.com"]
[Source "ChessBase"]
[SourceQuality "1"]
[TimeControl "40/5400+30:1800+30"]

{[%evp 10,144,11,12,14,16,27,25,38,21,28,19,21,20,21,9,13,8,17,0,21,10,7,0,17,20,44,22,41,4,33,29,46,45,53,49,58,43,43,28,48,41,116,120,156,164,221,155,159,127,221,150,138,142,177,163,219,0,0,0,97,0,0,-76,-51,-137,-144,-139,-144,-217,-225,-236,-197,-238,-235,-230,-229,-306,-289,-334,-336,-367,-379,-379,-368,-361,-318,-318,-318,-494,-487,-487,-476,-597,-594,-577,-523,-689,-669,-669,-669,-513,-669,-721,-652,-1695,-1278,-1627,-1559,-29962,-191,-6087,-29963,-29964,-29965,-29974,-29974,-29976,-29977,-29977,-29978,-29979,-29980,-29980,-29981,-29981,-29980,-29980,-29979,-29990,-29991,-29991,-29992,-29992,-29993,-29993,-678]} 1. e4 {[%emt 0:00:05]} c6 {[%emt 0:00:04]} 2. d4 {[%emt 0:00:10]} d5 {[%emt 0:00:04]} 3. e5 {[%emt 0:00:12]} Bf5 {[%emt 0:00:06]} 4. Nd2 {[%emt 0:00:27]} e6 {[%emt 0:00:08]} 5. Nb3 {[%emt 0:00:31]} Nd7 {[%emt 0:00:08]} 6. Nf3 {[%emt 0:00:13]} Qc7 $1 {[%emt 0:03:11][%mdl 4] now scores much better than the old 6...Ne7. B12: Caro-Kann: Advance Variation.} 7. Be2 {[%emt 0:09:56]} a6 {[%emt 0:03:20]} 8. O-O {[%emt 0:10:49]} c5 {[%emt 0:00:20] White has an edge.} 9. dxc5 {[%emt 0:09:21]} Bxc5 {[%emt 0:00:11]} 10. Nxc5 {[%emt 0:01:46]} Nxc5 {[%emt 0:00:18]} 11. Nd4 {[%emt 0:02:43] next Nxf5 is good for White.} Ne7 {[%emt 0:02:57]} 12. f4 {[%emt 0:02:19]} Be4 {[%emt 0:00:57]} 13. Be3 {[%emt 0:02:18]} O-O {[%emt 0:09:13] [#]} 14. a4 $146 {[%emt 0:00:25]} ({Predecessor:} 14. g4 b5 15. Qe1 Na4 16. Rb1 Nc6 17. b3 Nb6 18. Rc1 Nd7 19. c3 Rac8 20. Qg3 {0-1 (55) Shuvalova,P (2489)-Keymer,V (2591) Chess.com INT 2021}) 14... Nf5 {[%emt 0:01:43]} 15. Nxf5 {[%emt 0:06:56]} exf5 {[%emt 0:00:14]} 16. a5 {[%emt 0:02:38]} Ne6 {[%emt 0:03:50]} 17. c3 {[%emt 0:04:37] Against d4} g6 {[%emt 0:03:39]} 18. Bf3 {[%emt 0:04:33]} Qc6 {[%emt 0:04:50][%cal Od5d4]} 19. Ra4 {[%emt 0:04:39]} Rad8 {[%emt 0:09:05][%cal Od5d4]} 20. Rb4 {[%emt 0:00:55]} d4 {[%emt 0:09:40]} 21. cxd4 {[%emt 0:04:35]} Bxf3 {[%emt 0:04:21]} 22. Qxf3 {[%emt 0:05:14]} (22. Rxf3 Qe4 $11) 22... Rd5 {[%emt 0:00:59]} 23. Rb6 {[%emt 0:06:53]} Qd7 {[%emt 0:00:23]} 24. Rc1 {[%emt 0:01:56][%cal Ob6d6]} Rd8 {[%emt 0:05:42]} 25. h3 $1 $36 {[%emt 0:00:33][%mdl 2048] White has good play.} Kg7 {[%emt 0:19:12]} (25... Qa4 $1 $14) 26. Kh2 $16 {[%emt 0:04:00]} Qe7 {[%emt 0:00:26]} 27. Rc4 {[%emt 0:01:41]} h6 {[%emt 0:01:47]} (27... Kg8 {was called for.} 28. Rcb4 Qc7 29. Rxb7 Qxa5) 28. Rcb4 {[%emt 0:02:18]} R8d7 {[%emt 0:00:39]} 29. Rb3 {[%emt 0:00:40][%cal Ob6b7] aiming for Rxb7!} Nd8 {[%emt 0:08:13]} (29... Qd8 $16 30. Rxb7 Qxa5) 30. Bf2 {[%emt 0:01:03]} Kh7 {[%emt 0:02:05]} 31. Rf6 {[%emt 0:04:48]} Ne6 {[%emt 0:03:18]} 32. Rxb7 {[%emt 0:01:24]} Rxd4 {[%emt 0:00:11]} (32... Rxb7 {might work better.} 33. Qxd5 Rxb2) 33. Rxd7 $2 {[%emt 0:04:52]} (33. Rb6 $1 $18 R4d5 34. Rxa6) 33... Rxd7 $11 {[%emt 0:00:09]} 34. Be3 {[%emt 0:00:49]} Rd3 {[%emt 0:01:38]} (34... Kg7 $11) 35. Qe2 {[%emt 0:00:39]} (35. b4 $1 $16 {[%cal Rb4b5]}) 35... Rb3 {[%emt 0:00:23]} 36. Bf2 {[%emt 0:00:57]} (36. Bb6 $11 {keeps the balance.}) 36... Qb7 $17 {[%emt 0:00:44]} 37. Qc2 {[%emt 0:00:32]} ({Better is} 37. Bb6 $15) 37... Kg7 {[%emt 0:01:33]} (37... Nxf4 $6 38. Bd4 $11) (37... Rxb2 38. Rxf7+ $1 Qxf7 39. Qxb2 Nxf4 40. Qc2 $11) 38. Bb6 {[%emt 0:00:07] [#]} Qd5 {[%emt 0:00:51]} 39. Rxe6 {[%emt 0:00:48]} (39. Qf2 $17) 39... Qxe6 {[%emt 0:00:21][%mdl 4096] Endgame KQR-KQB} ({Worse is} 39... fxe6 40. Qc7+ Kg8 41. Qc8+ Kh7 42. Qc7+ Kh8 43. Qc8+ Kh7 44. Qc7+ Kh8 45. Qc8+ Kh7 $11) 40. Bd8 {[%emt 0:00:16]} Rb8 {[%emt 0:01:16]} 41. Qd3 {[%emt 0:07:22] [#]} Rc8 $1 {[%emt 0:07:49]} ({Don't do} 41... Rxb2 42. Bf6+ Kh7 43. Qd8 $18) 42. b3 {[%emt 0:09:58]} Qc6 {[%emt 0:03:19]} 43. Bb6 {[%emt 0:04:37]} Qe4 {[%emt 0:02:03]} 44. Qxe4 {[%emt 0:00:16]} fxe4 $19 {[%emt 0:00:02] KR-KB} 45. b4 {[%emt 0:00:08]} Rc4 {[%emt 0:01:13]} 46. Bc5 {[%emt 0:02:35]} e3 {[%emt 0:00:10]} 47. Bxe3 {[%emt 0:00:12]} Rxb4 {[%emt 0:00:07]} 48. Kg3 {[%emt 0:00:16]} Ra4 {[%emt 0:00:44]} 49. Bb6 {[%emt 0:00:28]} (49. Bd2 $142) 49... Kf8 {[%emt 0:00:46]} 50. Kg4 {[%emt 0:04:04]} Ke7 {[%emt 0:01:50]} 51. g3 {[%emt 0:00:16]} Ke6 {[%emt 0:00:18]} 52. Bc7 {[%emt 0:00:49]} Rc4 {[%emt 0:03:20]} 53. Bd8 {[%emt 0:00:58]} Rc3 {[%emt 0:00:09]} 54. Bb6 {[%emt 0:00:47]} h5+ {[%emt 0:00:18]} 55. Kh4 {[%emt 0:00:07]} Kf5 {[%emt 0:00:07]} 56. Bd8 {[%emt 0:00:17]} Rc4 {[%emt 0:01:17]} 57. Be7 {[%emt 0:02:05]} Rd4 {[%emt 0:00:21]} 58. Bc5 {[%emt 0:00:13]} Ra4 {[%emt 0:00:10]} 59. Bb6 {[%emt 0:01:01]} g5+ {[%emt 0:00:54]} 60. Kxh5 {[%emt 0:00:05]} gxf4 {[%emt 0:00:04]} 61. gxf4 {[%emt 0:00:07] Black mates.} Rxf4 {[%emt 0:00:17]} 62. h4 {[%emt 0:00:38]} Rc4 {[%emt 0:00:17]} ({Not} 62... Kxe5 63. Bc7+ Kf5 64. Bxf4 Kxf4 65. Kh6 $11) 63. Bd8 {[%emt 0:00:46]} Kxe5 {[%emt 0:01:26]} 64. Kg5 {[%emt 0:00:39]} Ke6 {[%emt 0:00:12]} 65. h5 {[%emt 0:01:10]} Rd4 {[%emt 0:01:35]} 66. Bb6 {[%emt 0:00:43]} f6+ {[%emt 0:00:08][%cal Bf7f6,Bf6f5,Bf5f4,Bf4e3][%mdl 32]} 67. Kg6 {[%emt 0:00:49]} Rg4+ {[%emt 0:00:08]} 68. Kh7 {[%emt 0:00:02]} Kf7 {[%emt 0:00:30]} 69. h6 {[%emt 0:00:44]} f5 {[%emt 0:00:03]} 70. Be3 {[%emt 0:03:07]} f4 {[%emt 0:00:13]} 71. Kh8 {[%emt 0:00:29]} fxe3 {[%emt 0:00:44]} 72. h7 {[%emt 0:00:10]} Kg6 {[%emt 0:00:02] Black used his chance.   Weighted Error Value: White=0.54/Black=0.15 (very precise)} 0-1

[Event "Israeli Championship 2022"]
[Site "Yosiah Arad"]
[Date "2022.12.07"]
[Round "3.2"]
[White "Parkhov, Yair"]
[Black "Dvoirys, Semen I."]
[Result "1-0"]
[ECO "D87"]
[WhiteElo "2470"]
[BlackElo "2461"]
[Annotator "TA"]
[PlyCount "65"]
[EventDate "2022.12.05"]
[EventType "swiss"]
[EventCountry "ISR"]
[SourceTitle "playchess.com"]
[Source "ChessBase"]
[SourceQuality "1"]
[TimeControl "40/5400+30:1800+30"]

{[%evp 21,65,13,41,7,29,8,5,10,20,-22,32,43,189,165,156,160,437,390,381,374,380,364,736,768,703,683,764,757,1118,1002,2106,1325,1818,1301,29969,12845,29972,29969,29980,29981,29981,29982,29982,29983,29996,29997]} 1. d4 {[%emt 0:00:02]} Nf6 {[%emt 0:00:08]} 2. c4 {[%emt 0:00:06]} g6 {[%emt 0:00:15]} 3. Nc3 {[%emt 0:00:17]} d5 {[%emt 0:00:05]} 4. cxd5 {[%emt 0:00:05]} Nxd5 {[%emt 0:00:04]} 5. e4 {[%emt 0:00:05]} Nxc3 {[%emt 0:00:05]} 6. bxc3 {[%emt 0:00:05]} Bg7 {[%emt 0:00:03]} 7. Bc4 {[%emt 0:00:08]} c5 {[%emt 0:00:12]} 8. Ne2 {[%emt 0:00:06]} Nc6 {[%emt 0:00:08]} 9. Be3 {[%emt 0:00:09]} O-O {[%emt 0:00:37]} 10. O-O {[%emt 0:00:06]} Qc7 {[%emt 0:00:18] 10...Bg4 is setting a new trend.} 11. Rc1 {[%emt 0:00:06]} Rd8 {[%emt 0:00:07]} 12. h4 {[%emt 0:00:06][%cal Bh2h4,Bh4h5,Bh5h6][%mdl 32] [#] D87: Exchange Grünfeld: Classical Line: Variations without ...cxd4.} Qb6 $146 {[%emt 1:34:28]} ({Predecessor:} 12... Na5 13. Bd3 e5 14. Bg5 Re8 15. dxe5 c4 16. Bc2 Qxe5 17. Rb1 a6 18. Nd4 Qc5 19. a4 Qa3 {½-½ (43) Adhiban,B (2661)-Petrosian,T (2609) Sharjah 2018}) 13. h5 {[%emt 0:34:27]} (13. Nf4 {simplifies} e6 14. d5 Ne5 15. Be2) 13... cxd4 {[%emt 0:00:00]} 14. cxd4 {[%emt 0:00:05] The position is equal.} Nxd4 {[%emt 0:00:00]} 15. h6 {[%emt 0:01:40] [#]} (15. Bd5 {seems wilder.} Bg4 16. f3 Nxe2+ 17. Qxe2 Bd4 18. Bxd4 Qxd4+ 19. Qf2) 15... Bf6 {[%emt 0:00:00]} (15... Bg4 $1 $11 16. f3 (16. hxg7 Nxe2+) 16... Be6 17. hxg7 Bxc4 18. Bxd4 (18. Rxc4 $2 Nxf3+ 19. Kf2 Rxd1 $19) (18. Nxd4 Bxf1 19. Qxf1 Rxd4 $17) 18... Qa6 19. Rxc4 Qxc4) 16. Bd5 $14 {[%emt 0:04:33][%cal Re2d4]} e5 {[%emt 0:00:00] Loses the game.} (16... Nxe2+ $1 $14 17. Qxe2 Qb2) 17. Nxd4 $18 {[%emt 0:03:11]} exd4 {[%emt 0:00:00]} 18. Bf4 $36 {[%emt 0:00:06][%mdl 2048] And now Bc7 would win. White is on the roll. White is more active.} Re8 $2 {[%emt 0:00:00]} (18... Rf8 $16 19. Qf3 Bh8) 19. Qf3 {[%emt 0:04:04] Bc7 is the strong threat.} (19. Rc7 Be6 $14) 19... Bd8 {[%emt 0:00:00] [#] Prevents Bc7.} 20. Be5 {[%emt 0:17:11][%csl Gd5][%cal Rf3f7][%mdl 576] Prevents Qf6.} Be6 {[%emt 0:00:00] Threatens to win with ...Bxd5.} 21. Rb1 {[%emt 0:01:18]} Bxd5 $2 {[%emt 0:00:00]} (21... Qc5) 22. Rxb6 {[%emt 0:00:30]} ({Weaker is} 22. exd5 Qa6 23. d6 (23. Bxd4 Bg5 $16) 23... Qc6 24. Qxc6 (24. Bxd4 Qxd6 25. Rxb7 Qe6 $16) 24... bxc6 25. Bxd4 Bb6 26. Bxb6 axb6 $16) 22... axb6 {[%emt 0:00:00]} 23. exd5 {[%emt 0:05:09]} ({Not} 23. Bxd4 Bc6 24. Qc3 Re6 $16) 23... Rxe5 {[%emt 0:00:00]} 24. d6 {[%emt 0:00:06]} Rb8 {[%emt 0:00:00]} 25. Qf4 {[%emt 0:02:34][%csl LRd4,LRe5]} Rf5 {[%emt 0:00:00]} 26. Qe4 {[%emt 0:01:08][%cal Re4e8]} Bf6 {[%emt 0:00:00]} 27. f4 {[%emt 0:00:06] White wants to mate with Re1.} Rc5 {[%emt 0:00:00]} 28. Re1 {[%emt 0:00:50]} (28. d7 $142 Rf8 29. Qxb7 Rh5 30. Qxb6 Be7 31. Re1 (31. Qxd4 $2 {perishes.} Bc5 $19) 31... Bc5 32. d8=Q Bxb6 33. Qxb6) 28... Rcc8 {[%emt 0:00:00]} 29. g4 {[%emt 0:02:51] White mates.} Kf8 {[%emt 0:00:00]} 30. d7 {[%emt 0:00:26]} Rd8 {[%emt 0:00:00]} 31. Qd5 {[%emt 0:01:38]} Kg8 {[%emt 0:00:00]} 32. Qd6 {[%emt 0:00:28][%csl LRb6,LRf6]} Bh8 {[%emt 0:00:00] [#]} 33. Qxb8 $3 {[%emt 0:00:11][%mdl 576] Double Attack.   Weighted Error Value: White=0.11 (very precise) /Black=1.12} 1-0